{"text_format":"1","workbook":"xlsx","n_sheets":12,"sheets":["Jan","Feb","Mar","Apr","May","Jun","Jul","Aug","Sep","Oct","Nov","Dec"],"not_rendered":{"charts":0,"images":0,"macros":1,"external_links":0,"defined_names":25,"comments":0,"pivot_tables":0},"unopened":[],"bounds":{"document_bytes":16777216,"sheet_cells":100000,"rows_first":2000,"rows_last":500,"rows_between":2000,"halvings":0,"cell_chars":16384,"cell_head_chars":4096},"cells_cut":0,"cells_raw":0,"read":"whole","date_system":"1900"}

{"sheet":"Jan","index":0,"n_rows":14,"n_cols":11,"rows_kept":14,"cut":false,"hidden":false,"merged":[[1,1,1,7],[13,3,14,7]]}
[]
[null,{"$f":"CONCATENATE(\"January \" & calendarYear)","v":"January 2018"}]
[null,"SUNDAY","MONDAY","TUESDAY","WEDNESDAY","THURSDAY","FRIDAY","SATURDAY"]
[null,{"$f":"IF(AND(YEAR(JanOffset+1)=calendarYear,MONTH(JanOffset+1)=1),JanOffset+1,\"\")","v":""},{"$f":"IF(AND(YEAR(JanOffset+2)=calendarYear,MONTH(JanOffset+2)=1),JanOffset+2,\"\")","v":"2018-01-01"},{"$f":"IF(AND(YEAR(JanOffset+3)=calendarYear,MONTH(JanOffset+3)=1),JanOffset+3,\"\")","v":"2018-01-02"},{"$f":"IF(AND(YEAR(JanOffset+4)=calendarYear,MONTH(JanOffset+4)=1),JanOffset+4,\"\")","v":"2018-01-03"},{"$f":"IF(AND(YEAR(JanOffset+5)=calendarYear,MONTH(JanOffset+5)=1),JanOffset+5,\"\")","v":"2018-01-04"},{"$f":"IF(AND(YEAR(JanOffset+6)=calendarYear,MONTH(JanOffset+6)=1),JanOffset+6,\"\")","v":"2018-01-05"},{"$f":"IF(AND(YEAR(JanOffset+7)=calendarYear,MONTH(JanOffset+7)=1),JanOffset+7,\"\")","v":"2018-01-06"}]
[null,null,null,null,null,null,null,null,null,"Year",2018]
[null,{"$f":"IF(AND(YEAR(JanOffset+8)=calendarYear,MONTH(JanOffset+8)=1),JanOffset+8,\"\")","v":"2018-01-07"},{"$f":"IF(AND(YEAR(JanOffset+9)=calendarYear,MONTH(JanOffset+9)=1),JanOffset+9,\"\")","v":"2018-01-08"},{"$f":"IF(AND(YEAR(JanOffset+10)=calendarYear,MONTH(JanOffset+10)=1),JanOffset+10,\"\")","v":"2018-01-09"},{"$f":"IF(AND(YEAR(JanOffset+11)=calendarYear,MONTH(JanOffset+11)=1),JanOffset+11,\"\")","v":"2018-01-10"},{"$f":"IF(AND(YEAR(JanOffset+12)=calendarYear,MONTH(JanOffset+12)=1),JanOffset+12,\"\")","v":"2018-01-11"},{"$f":"IF(AND(YEAR(JanOffset+13)=calendarYear,MONTH(JanOffset+13)=1),JanOffset+13,\"\")","v":"2018-01-12"},{"$f":"IF(AND(YEAR(JanOffset+14)=calendarYear,MONTH(JanOffset+14)=1),JanOffset+14,\"\")","v":"2018-01-13"}]
[]
[null,{"$f":"IF(AND(YEAR(JanOffset+15)=calendarYear,MONTH(JanOffset+15)=1),JanOffset+15,\"\")","v":"2018-01-14"},{"$f":"IF(AND(YEAR(JanOffset+16)=calendarYear,MONTH(JanOffset+16)=1),JanOffset+16,\"\")","v":"2018-01-15"},{"$f":"IF(AND(YEAR(JanOffset+17)=calendarYear,MONTH(JanOffset+17)=1),JanOffset+17,\"\")","v":"2018-01-16"},{"$f":"IF(AND(YEAR(JanOffset+18)=calendarYear,MONTH(JanOffset+18)=1),JanOffset+18,\"\")","v":"2018-01-17"},{"$f":"IF(AND(YEAR(JanOffset+19)=calendarYear,MONTH(JanOffset+19)=1),JanOffset+19,\"\")","v":"2018-01-18"},{"$f":"IF(AND(YEAR(JanOffset+20)=calendarYear,MONTH(JanOffset+20)=1),JanOffset+20,\"\")","v":"2018-01-19"},{"$f":"IF(AND(YEAR(JanOffset+21)=calendarYear,MONTH(JanOffset+21)=1),JanOffset+21,\"\")","v":"2018-01-20"}]
[]
[null,{"$f":"IF(AND(YEAR(JanOffset+22)=calendarYear,MONTH(JanOffset+22)=1),JanOffset+22,\"\")","v":"2018-01-21"},{"$f":"IF(AND(YEAR(JanOffset+23)=calendarYear,MONTH(JanOffset+23)=1),JanOffset+23,\"\")","v":"2018-01-22"},{"$f":"IF(AND(YEAR(JanOffset+24)=calendarYear,MONTH(JanOffset+24)=1),JanOffset+24,\"\")","v":"2018-01-23"},{"$f":"IF(AND(YEAR(JanOffset+25)=calendarYear,MONTH(JanOffset+25)=1),JanOffset+25,\"\")","v":"2018-01-24"},{"$f":"IF(AND(YEAR(JanOffset+26)=calendarYear,MONTH(JanOffset+26)=1),JanOffset+26,\"\")","v":"2018-01-25"},{"$f":"IF(AND(YEAR(JanOffset+27)=calendarYear,MONTH(JanOffset+27)=1),JanOffset+27,\"\")","v":"2018-01-26"},{"$f":"IF(AND(YEAR(JanOffset+28)=calendarYear,MONTH(JanOffset+28)=1),JanOffset+28,\"\")","v":"2018-01-27"}]
[]
[null,{"$f":"IF(AND(YEAR(JanOffset+29)=calendarYear,MONTH(JanOffset+29)=1),JanOffset+29,\"\")","v":"2018-01-28"},{"$f":"IF(AND(YEAR(JanOffset+30)=calendarYear,MONTH(JanOffset+30)=1),JanOffset+30,\"\")","v":"2018-01-29"},{"$f":"IF(AND(YEAR(JanOffset+31)=calendarYear,MONTH(JanOffset+31)=1),JanOffset+31,\"\")","v":"2018-01-30"},{"$f":"IF(AND(YEAR(JanOffset+32)=calendarYear,MONTH(JanOffset+32)=1),JanOffset+32,\"\")","v":"2018-01-31"},{"$f":"IF(AND(YEAR(JanOffset+33)=calendarYear,MONTH(JanOffset+33)=1),JanOffset+33,\"\")","v":""},{"$f":"IF(AND(YEAR(JanOffset+34)=calendarYear,MONTH(JanOffset+34)=1),JanOffset+34,\"\")","v":""},{"$f":"IF(AND(YEAR(JanOffset+35)=calendarYear,MONTH(JanOffset+35)=1),JanOffset+35,\"\")","v":""}]
[]
[null,{"$f":"IF(AND(YEAR(JanOffset+36)=calendarYear,MONTH(JanOffset+36)=1),JanOffset+36,\"\")","v":""},{"$f":"IF(AND(YEAR(JanOffset+37)=calendarYear,MONTH(JanOffset+37)=1),JanOffset+37,\"\")","v":""},"Notes:"]

{"sheet":"Feb","index":1,"n_rows":14,"n_cols":8,"rows_kept":14,"cut":false,"hidden":false,"merged":[[1,1,1,7],[13,3,14,7]]}
[]
[null,{"$f":"CONCATENATE(\"February \" & calendarYear)","v":"February 2018"}]
[null,"SUNDAY","MONDAY","TUESDAY","WEDNESDAY","THURSDAY","FRIDAY","SATURDAY"]
[null,{"$f":"IF(AND(YEAR(FebOffset+1)=calendarYear,MONTH(FebOffset+1)=2),FebOffset+1,\"\")","v":""},{"$f":"IF(AND(YEAR(FebOffset+2)=calendarYear,MONTH(FebOffset+2)=2),FebOffset+2,\"\")","v":""},{"$f":"IF(AND(YEAR(FebOffset+3)=calendarYear,MONTH(FebOffset+3)=2),FebOffset+3,\"\")","v":""},{"$f":"IF(AND(YEAR(FebOffset+4)=calendarYear,MONTH(FebOffset+4)=2),FebOffset+4,\"\")","v":""},{"$f":"IF(AND(YEAR(FebOffset+5)=calendarYear,MONTH(FebOffset+5)=2),FebOffset+5,\"\")","v":"2018-02-01"},{"$f":"IF(AND(YEAR(FebOffset+6)=calendarYear,MONTH(FebOffset+6)=2),FebOffset+6,\"\")","v":"2018-02-02"},{"$f":"IF(AND(YEAR(FebOffset+7)=calendarYear,MONTH(FebOffset+7)=2),FebOffset+7,\"\")","v":"2018-02-03"}]
[]
[null,{"$f":"IF(AND(YEAR(FebOffset+8)=calendarYear,MONTH(FebOffset+8)=2),FebOffset+8,\"\")","v":"2018-02-04"},{"$f":"IF(AND(YEAR(FebOffset+9)=calendarYear,MONTH(FebOffset+9)=2),FebOffset+9,\"\")","v":"2018-02-05"},{"$f":"IF(AND(YEAR(FebOffset+10)=calendarYear,MONTH(FebOffset+10)=2),FebOffset+10,\"\")","v":"2018-02-06"},{"$f":"IF(AND(YEAR(FebOffset+11)=calendarYear,MONTH(FebOffset+11)=2),FebOffset+11,\"\")","v":"2018-02-07"},{"$f":"IF(AND(YEAR(FebOffset+12)=calendarYear,MONTH(FebOffset+12)=2),FebOffset+12,\"\")","v":"2018-02-08"},{"$f":"IF(AND(YEAR(FebOffset+13)=calendarYear,MONTH(FebOffset+13)=2),FebOffset+13,\"\")","v":"2018-02-09"},{"$f":"IF(AND(YEAR(FebOffset+14)=calendarYear,MONTH(FebOffset+14)=2),FebOffset+14,\"\")","v":"2018-02-10"}]
[]
[null,{"$f":"IF(AND(YEAR(FebOffset+15)=calendarYear,MONTH(FebOffset+15)=2),FebOffset+15,\"\")","v":"2018-02-11"},{"$f":"IF(AND(YEAR(FebOffset+16)=calendarYear,MONTH(FebOffset+16)=2),FebOffset+16,\"\")","v":"2018-02-12"},{"$f":"IF(AND(YEAR(FebOffset+17)=calendarYear,MONTH(FebOffset+17)=2),FebOffset+17,\"\")","v":"2018-02-13"},{"$f":"IF(AND(YEAR(FebOffset+18)=calendarYear,MONTH(FebOffset+18)=2),FebOffset+18,\"\")","v":"2018-02-14"},{"$f":"IF(AND(YEAR(FebOffset+19)=calendarYear,MONTH(FebOffset+19)=2),FebOffset+19,\"\")","v":"2018-02-15"},{"$f":"IF(AND(YEAR(FebOffset+20)=calendarYear,MONTH(FebOffset+20)=2),FebOffset+20,\"\")","v":"2018-02-16"},{"$f":"IF(AND(YEAR(FebOffset+21)=calendarYear,MONTH(FebOffset+21)=2),FebOffset+21,\"\")","v":"2018-02-17"}]
[]
[null,{"$f":"IF(AND(YEAR(FebOffset+22)=calendarYear,MONTH(FebOffset+22)=2),FebOffset+22,\"\")","v":"2018-02-18"},{"$f":"IF(AND(YEAR(FebOffset+23)=calendarYear,MONTH(FebOffset+23)=2),FebOffset+23,\"\")","v":"2018-02-19"},{"$f":"IF(AND(YEAR(FebOffset+24)=calendarYear,MONTH(FebOffset+24)=2),FebOffset+24,\"\")","v":"2018-02-20"},{"$f":"IF(AND(YEAR(FebOffset+25)=calendarYear,MONTH(FebOffset+25)=2),FebOffset+25,\"\")","v":"2018-02-21"},{"$f":"IF(AND(YEAR(FebOffset+26)=calendarYear,MONTH(FebOffset+26)=2),FebOffset+26,\"\")","v":"2018-02-22"},{"$f":"IF(AND(YEAR(FebOffset+27)=calendarYear,MONTH(FebOffset+27)=2),FebOffset+27,\"\")","v":"2018-02-23"},{"$f":"IF(AND(YEAR(FebOffset+28)=calendarYear,MONTH(FebOffset+28)=2),FebOffset+28,\"\")","v":"2018-02-24"}]
[]
[null,{"$f":"IF(AND(YEAR(FebOffset+29)=calendarYear,MONTH(FebOffset+29)=2),FebOffset+29,\"\")","v":"2018-02-25"},{"$f":"IF(AND(YEAR(FebOffset+30)=calendarYear,MONTH(FebOffset+30)=2),FebOffset+30,\"\")","v":"2018-02-26"},{"$f":"IF(AND(YEAR(FebOffset+31)=calendarYear,MONTH(FebOffset+31)=2),FebOffset+31,\"\")","v":"2018-02-27"},{"$f":"IF(AND(YEAR(FebOffset+32)=calendarYear,MONTH(FebOffset+32)=2),FebOffset+32,\"\")","v":"2018-02-28"},{"$f":"IF(AND(YEAR(FebOffset+33)=calendarYear,MONTH(FebOffset+33)=2),FebOffset+33,\"\")","v":""},{"$f":"IF(AND(YEAR(FebOffset+34)=calendarYear,MONTH(FebOffset+34)=2),FebOffset+34,\"\")","v":""},{"$f":"IF(AND(YEAR(FebOffset+35)=calendarYear,MONTH(FebOffset+35)=2),FebOffset+35,\"\")","v":""}]
[]
[null,{"$f":"IF(AND(YEAR(FebOffset+36)=calendarYear,MONTH(FebOffset+36)=2),FebOffset+36,\"\")","v":""},{"$f":"IF(AND(YEAR(FebOffset+37)=calendarYear,MONTH(FebOffset+37)=2),FebOffset+37,\"\")","v":""},"Notes:"]

{"sheet":"Mar","index":2,"n_rows":14,"n_cols":8,"rows_kept":14,"cut":false,"hidden":false,"merged":[[1,1,1,7],[13,3,14,7]]}
[]
[null,{"$f":"CONCATENATE(\"March \" & calendarYear)","v":"March 2018"}]
[null,"SUNDAY","MONDAY","TUESDAY","WEDNESDAY","THURSDAY","FRIDAY","SATURDAY"]
[null,{"$f":"IF(AND(YEAR(MarOffset+1)=calendarYear,MONTH(MarOffset+1)=3),MarOffset+1,\"\")","v":""},{"$f":"IF(AND(YEAR(MarOffset+2)=calendarYear,MONTH(MarOffset+2)=3),MarOffset+2,\"\")","v":""},{"$f":"IF(AND(YEAR(MarOffset+3)=calendarYear,MONTH(MarOffset+3)=3),MarOffset+3,\"\")","v":""},{"$f":"IF(AND(YEAR(MarOffset+4)=calendarYear,MONTH(MarOffset+4)=3),MarOffset+4,\"\")","v":""},{"$f":"IF(AND(YEAR(MarOffset+5)=calendarYear,MONTH(MarOffset+5)=3),MarOffset+5,\"\")","v":"2018-03-01"},{"$f":"IF(AND(YEAR(MarOffset+6)=calendarYear,MONTH(MarOffset+6)=3),MarOffset+6,\"\")","v":"2018-03-02"},{"$f":"IF(AND(YEAR(MarOffset+7)=calendarYear,MONTH(MarOffset+7)=3),MarOffset+7,\"\")","v":"2018-03-03"}]
[]
[null,{"$f":"IF(AND(YEAR(MarOffset+8)=calendarYear,MONTH(MarOffset+8)=3),MarOffset+8,\"\")","v":"2018-03-04"},{"$f":"IF(AND(YEAR(MarOffset+9)=calendarYear,MONTH(MarOffset+9)=3),MarOffset+9,\"\")","v":"2018-03-05"},{"$f":"IF(AND(YEAR(MarOffset+10)=calendarYear,MONTH(MarOffset+10)=3),MarOffset+10,\"\")","v":"2018-03-06"},{"$f":"IF(AND(YEAR(MarOffset+11)=calendarYear,MONTH(MarOffset+11)=3),MarOffset+11,\"\")","v":"2018-03-07"},{"$f":"IF(AND(YEAR(MarOffset+12)=calendarYear,MONTH(MarOffset+12)=3),MarOffset+12,\"\")","v":"2018-03-08"},{"$f":"IF(AND(YEAR(MarOffset+13)=calendarYear,MONTH(MarOffset+13)=3),MarOffset+13,\"\")","v":"2018-03-09"},{"$f":"IF(AND(YEAR(MarOffset+14)=calendarYear,MONTH(MarOffset+14)=3),MarOffset+14,\"\")","v":"2018-03-10"}]
[]
[null,{"$f":"IF(AND(YEAR(MarOffset+15)=calendarYear,MONTH(MarOffset+15)=3),MarOffset+15,\"\")","v":"2018-03-11"},{"$f":"IF(AND(YEAR(MarOffset+16)=calendarYear,MONTH(MarOffset+16)=3),MarOffset+16,\"\")","v":"2018-03-12"},{"$f":"IF(AND(YEAR(MarOffset+17)=calendarYear,MONTH(MarOffset+17)=3),MarOffset+17,\"\")","v":"2018-03-13"},{"$f":"IF(AND(YEAR(MarOffset+18)=calendarYear,MONTH(MarOffset+18)=3),MarOffset+18,\"\")","v":"2018-03-14"},{"$f":"IF(AND(YEAR(MarOffset+19)=calendarYear,MONTH(MarOffset+19)=3),MarOffset+19,\"\")","v":"2018-03-15"},{"$f":"IF(AND(YEAR(MarOffset+20)=calendarYear,MONTH(MarOffset+20)=3),MarOffset+20,\"\")","v":"2018-03-16"},{"$f":"IF(AND(YEAR(MarOffset+21)=calendarYear,MONTH(MarOffset+21)=3),MarOffset+21,\"\")","v":"2018-03-17"}]
[]
[null,{"$f":"IF(AND(YEAR(MarOffset+22)=calendarYear,MONTH(MarOffset+22)=3),MarOffset+22,\"\")","v":"2018-03-18"},{"$f":"IF(AND(YEAR(MarOffset+23)=calendarYear,MONTH(MarOffset+23)=3),MarOffset+23,\"\")","v":"2018-03-19"},{"$f":"IF(AND(YEAR(MarOffset+24)=calendarYear,MONTH(MarOffset+24)=3),MarOffset+24,\"\")","v":"2018-03-20"},{"$f":"IF(AND(YEAR(MarOffset+25)=calendarYear,MONTH(MarOffset+25)=3),MarOffset+25,\"\")","v":"2018-03-21"},{"$f":"IF(AND(YEAR(MarOffset+26)=calendarYear,MONTH(MarOffset+26)=3),MarOffset+26,\"\")","v":"2018-03-22"},{"$f":"IF(AND(YEAR(MarOffset+27)=calendarYear,MONTH(MarOffset+27)=3),MarOffset+27,\"\")","v":"2018-03-23"},{"$f":"IF(AND(YEAR(MarOffset+28)=calendarYear,MONTH(MarOffset+28)=3),MarOffset+28,\"\")","v":"2018-03-24"}]
[]
[null,{"$f":"IF(AND(YEAR(MarOffset+29)=calendarYear,MONTH(MarOffset+29)=3),MarOffset+29,\"\")","v":"2018-03-25"},{"$f":"IF(AND(YEAR(MarOffset+30)=calendarYear,MONTH(MarOffset+30)=3),MarOffset+30,\"\")","v":"2018-03-26"},{"$f":"IF(AND(YEAR(MarOffset+31)=calendarYear,MONTH(MarOffset+31)=3),MarOffset+31,\"\")","v":"2018-03-27"},{"$f":"IF(AND(YEAR(MarOffset+32)=calendarYear,MONTH(MarOffset+32)=3),MarOffset+32,\"\")","v":"2018-03-28"},{"$f":"IF(AND(YEAR(MarOffset+33)=calendarYear,MONTH(MarOffset+33)=3),MarOffset+33,\"\")","v":"2018-03-29"},{"$f":"IF(AND(YEAR(MarOffset+34)=calendarYear,MONTH(MarOffset+34)=3),MarOffset+34,\"\")","v":"2018-03-30"},{"$f":"IF(AND(YEAR(MarOffset+35)=calendarYear,MONTH(MarOffset+35)=3),MarOffset+35,\"\")","v":"2018-03-31"}]
[]
[null,{"$f":"IF(AND(YEAR(MarOffset+36)=calendarYear,MONTH(MarOffset+36)=3),MarOffset+36,\"\")","v":""},{"$f":"IF(AND(YEAR(MarOffset+37)=calendarYear,MONTH(MarOffset+37)=3),MarOffset+37,\"\")","v":""},"Notes:"]

{"sheet":"Apr","index":3,"n_rows":14,"n_cols":8,"rows_kept":14,"cut":false,"hidden":false,"merged":[[1,1,1,7],[13,3,14,7]]}
[]
[null,{"$f":"CONCATENATE(\"April \" & calendarYear)","v":"April 2018"}]
[null,"SUNDAY","MONDAY","TUESDAY","WEDNESDAY","THURSDAY","FRIDAY","SATURDAY"]
[null,{"$f":"IF(AND(YEAR(AprOffset+1)=calendarYear,MONTH(AprOffset+1)=4),AprOffset+1,\"\")","v":"2018-04-01"},{"$f":"IF(AND(YEAR(AprOffset+2)=calendarYear,MONTH(AprOffset+2)=4),AprOffset+2,\"\")","v":"2018-04-02"},{"$f":"IF(AND(YEAR(AprOffset+3)=calendarYear,MONTH(AprOffset+3)=4),AprOffset+3,\"\")","v":"2018-04-03"},{"$f":"IF(AND(YEAR(AprOffset+4)=calendarYear,MONTH(AprOffset+4)=4),AprOffset+4,\"\")","v":"2018-04-04"},{"$f":"IF(AND(YEAR(AprOffset+5)=calendarYear,MONTH(AprOffset+5)=4),AprOffset+5,\"\")","v":"2018-04-05"},{"$f":"IF(AND(YEAR(AprOffset+6)=calendarYear,MONTH(AprOffset+6)=4),AprOffset+6,\"\")","v":"2018-04-06"},{"$f":"IF(AND(YEAR(AprOffset+7)=calendarYear,MONTH(AprOffset+7)=4),AprOffset+7,\"\")","v":"2018-04-07"}]
[]
[null,{"$f":"IF(AND(YEAR(AprOffset+8)=calendarYear,MONTH(AprOffset+8)=4),AprOffset+8,\"\")","v":"2018-04-08"},{"$f":"IF(AND(YEAR(AprOffset+9)=calendarYear,MONTH(AprOffset+9)=4),AprOffset+9,\"\")","v":"2018-04-09"},{"$f":"IF(AND(YEAR(AprOffset+10)=calendarYear,MONTH(AprOffset+10)=4),AprOffset+10,\"\")","v":"2018-04-10"},{"$f":"IF(AND(YEAR(AprOffset+11)=calendarYear,MONTH(AprOffset+11)=4),AprOffset+11,\"\")","v":"2018-04-11"},{"$f":"IF(AND(YEAR(AprOffset+12)=calendarYear,MONTH(AprOffset+12)=4),AprOffset+12,\"\")","v":"2018-04-12"},{"$f":"IF(AND(YEAR(AprOffset+13)=calendarYear,MONTH(AprOffset+13)=4),AprOffset+13,\"\")","v":"2018-04-13"},{"$f":"IF(AND(YEAR(AprOffset+14)=calendarYear,MONTH(AprOffset+14)=4),AprOffset+14,\"\")","v":"2018-04-14"}]
[]
[null,{"$f":"IF(AND(YEAR(AprOffset+15)=calendarYear,MONTH(AprOffset+15)=4),AprOffset+15,\"\")","v":"2018-04-15"},{"$f":"IF(AND(YEAR(AprOffset+16)=calendarYear,MONTH(AprOffset+16)=4),AprOffset+16,\"\")","v":"2018-04-16"},{"$f":"IF(AND(YEAR(AprOffset+17)=calendarYear,MONTH(AprOffset+17)=4),AprOffset+17,\"\")","v":"2018-04-17"},{"$f":"IF(AND(YEAR(AprOffset+18)=calendarYear,MONTH(AprOffset+18)=4),AprOffset+18,\"\")","v":"2018-04-18"},{"$f":"IF(AND(YEAR(AprOffset+19)=calendarYear,MONTH(AprOffset+19)=4),AprOffset+19,\"\")","v":"2018-04-19"},{"$f":"IF(AND(YEAR(AprOffset+20)=calendarYear,MONTH(AprOffset+20)=4),AprOffset+20,\"\")","v":"2018-04-20"},{"$f":"IF(AND(YEAR(AprOffset+21)=calendarYear,MONTH(AprOffset+21)=4),AprOffset+21,\"\")","v":"2018-04-21"}]
[]
[null,{"$f":"IF(AND(YEAR(AprOffset+22)=calendarYear,MONTH(AprOffset+22)=4),AprOffset+22,\"\")","v":"2018-04-22"},{"$f":"IF(AND(YEAR(AprOffset+23)=calendarYear,MONTH(AprOffset+23)=4),AprOffset+23,\"\")","v":"2018-04-23"},{"$f":"IF(AND(YEAR(AprOffset+24)=calendarYear,MONTH(AprOffset+24)=4),AprOffset+24,\"\")","v":"2018-04-24"},{"$f":"IF(AND(YEAR(AprOffset+25)=calendarYear,MONTH(AprOffset+25)=4),AprOffset+25,\"\")","v":"2018-04-25"},{"$f":"IF(AND(YEAR(AprOffset+26)=calendarYear,MONTH(AprOffset+26)=4),AprOffset+26,\"\")","v":"2018-04-26"},{"$f":"IF(AND(YEAR(AprOffset+27)=calendarYear,MONTH(AprOffset+27)=4),AprOffset+27,\"\")","v":"2018-04-27"},{"$f":"IF(AND(YEAR(AprOffset+28)=calendarYear,MONTH(AprOffset+28)=4),AprOffset+28,\"\")","v":"2018-04-28"}]
[]
[null,{"$f":"IF(AND(YEAR(AprOffset+29)=calendarYear,MONTH(AprOffset+29)=4),AprOffset+29,\"\")","v":"2018-04-29"},{"$f":"IF(AND(YEAR(AprOffset+30)=calendarYear,MONTH(AprOffset+30)=4),AprOffset+30,\"\")","v":"2018-04-30"},{"$f":"IF(AND(YEAR(AprOffset+31)=calendarYear,MONTH(AprOffset+31)=4),AprOffset+31,\"\")","v":""},{"$f":"IF(AND(YEAR(AprOffset+32)=calendarYear,MONTH(AprOffset+32)=4),AprOffset+32,\"\")","v":""},{"$f":"IF(AND(YEAR(AprOffset+33)=calendarYear,MONTH(AprOffset+33)=4),AprOffset+33,\"\")","v":""},{"$f":"IF(AND(YEAR(AprOffset+34)=calendarYear,MONTH(AprOffset+34)=4),AprOffset+34,\"\")","v":""},{"$f":"IF(AND(YEAR(AprOffset+35)=calendarYear,MONTH(AprOffset+35)=4),AprOffset+35,\"\")","v":""}]
[]
[null,{"$f":"IF(AND(YEAR(AprOffset+36)=calendarYear,MONTH(AprOffset+36)=4),AprOffset+36,\"\")","v":""},{"$f":"IF(AND(YEAR(AprOffset+37)=calendarYear,MONTH(AprOffset+37)=4),AprOffset+37,\"\")","v":""},"Notes:"]

{"sheet":"May","index":4,"n_rows":14,"n_cols":8,"rows_kept":14,"cut":false,"hidden":false,"merged":[[1,1,1,7],[13,3,14,7]]}
[]
[null,{"$f":"CONCATENATE(\"May \" & calendarYear)","v":"May 2018"}]
[null,"SUNDAY","MONDAY","TUESDAY","WEDNESDAY","THURSDAY","FRIDAY","SATURDAY"]
[null,{"$f":"IF(AND(YEAR(MayOffset+1)=calendarYear,MONTH(MayOffset+1)=5),MayOffset+1,\"\")","v":""},{"$f":"IF(AND(YEAR(MayOffset+2)=calendarYear,MONTH(MayOffset+2)=5),MayOffset+2,\"\")","v":""},{"$f":"IF(AND(YEAR(MayOffset+3)=calendarYear,MONTH(MayOffset+3)=5),MayOffset+3,\"\")","v":"2018-05-01"},{"$f":"IF(AND(YEAR(MayOffset+4)=calendarYear,MONTH(MayOffset+4)=5),MayOffset+4,\"\")","v":"2018-05-02"},{"$f":"IF(AND(YEAR(MayOffset+5)=calendarYear,MONTH(MayOffset+5)=5),MayOffset+5,\"\")","v":"2018-05-03"},{"$f":"IF(AND(YEAR(MayOffset+6)=calendarYear,MONTH(MayOffset+6)=5),MayOffset+6,\"\")","v":"2018-05-04"},{"$f":"IF(AND(YEAR(MayOffset+7)=calendarYear,MONTH(MayOffset+7)=5),MayOffset+7,\"\")","v":"2018-05-05"}]
[]
[null,{"$f":"IF(AND(YEAR(MayOffset+8)=calendarYear,MONTH(MayOffset+8)=5),MayOffset+8,\"\")","v":"2018-05-06"},{"$f":"IF(AND(YEAR(MayOffset+9)=calendarYear,MONTH(MayOffset+9)=5),MayOffset+9,\"\")","v":"2018-05-07"},{"$f":"IF(AND(YEAR(MayOffset+10)=calendarYear,MONTH(MayOffset+10)=5),MayOffset+10,\"\")","v":"2018-05-08"},{"$f":"IF(AND(YEAR(MayOffset+11)=calendarYear,MONTH(MayOffset+11)=5),MayOffset+11,\"\")","v":"2018-05-09"},{"$f":"IF(AND(YEAR(MayOffset+12)=calendarYear,MONTH(MayOffset+12)=5),MayOffset+12,\"\")","v":"2018-05-10"},{"$f":"IF(AND(YEAR(MayOffset+13)=calendarYear,MONTH(MayOffset+13)=5),MayOffset+13,\"\")","v":"2018-05-11"},{"$f":"IF(AND(YEAR(MayOffset+14)=calendarYear,MONTH(MayOffset+14)=5),MayOffset+14,\"\")","v":"2018-05-12"}]
[]
[null,{"$f":"IF(AND(YEAR(MayOffset+15)=calendarYear,MONTH(MayOffset+15)=5),MayOffset+15,\"\")","v":"2018-05-13"},{"$f":"IF(AND(YEAR(MayOffset+16)=calendarYear,MONTH(MayOffset+16)=5),MayOffset+16,\"\")","v":"2018-05-14"},{"$f":"IF(AND(YEAR(MayOffset+17)=calendarYear,MONTH(MayOffset+17)=5),MayOffset+17,\"\")","v":"2018-05-15"},{"$f":"IF(AND(YEAR(MayOffset+18)=calendarYear,MONTH(MayOffset+18)=5),MayOffset+18,\"\")","v":"2018-05-16"},{"$f":"IF(AND(YEAR(MayOffset+19)=calendarYear,MONTH(MayOffset+19)=5),MayOffset+19,\"\")","v":"2018-05-17"},{"$f":"IF(AND(YEAR(MayOffset+20)=calendarYear,MONTH(MayOffset+20)=5),MayOffset+20,\"\")","v":"2018-05-18"},{"$f":"IF(AND(YEAR(MayOffset+21)=calendarYear,MONTH(MayOffset+21)=5),MayOffset+21,\"\")","v":"2018-05-19"}]
[]
[null,{"$f":"IF(AND(YEAR(MayOffset+22)=calendarYear,MONTH(MayOffset+22)=5),MayOffset+22,\"\")","v":"2018-05-20"},{"$f":"IF(AND(YEAR(MayOffset+23)=calendarYear,MONTH(MayOffset+23)=5),MayOffset+23,\"\")","v":"2018-05-21"},{"$f":"IF(AND(YEAR(MayOffset+24)=calendarYear,MONTH(MayOffset+24)=5),MayOffset+24,\"\")","v":"2018-05-22"},{"$f":"IF(AND(YEAR(MayOffset+25)=calendarYear,MONTH(MayOffset+25)=5),MayOffset+25,\"\")","v":"2018-05-23"},{"$f":"IF(AND(YEAR(MayOffset+26)=calendarYear,MONTH(MayOffset+26)=5),MayOffset+26,\"\")","v":"2018-05-24"},{"$f":"IF(AND(YEAR(MayOffset+27)=calendarYear,MONTH(MayOffset+27)=5),MayOffset+27,\"\")","v":"2018-05-25"},{"$f":"IF(AND(YEAR(MayOffset+28)=calendarYear,MONTH(MayOffset+28)=5),MayOffset+28,\"\")","v":"2018-05-26"}]
[]
[null,{"$f":"IF(AND(YEAR(MayOffset+29)=calendarYear,MONTH(MayOffset+29)=5),MayOffset+29,\"\")","v":"2018-05-27"},{"$f":"IF(AND(YEAR(MayOffset+30)=calendarYear,MONTH(MayOffset+30)=5),MayOffset+30,\"\")","v":"2018-05-28"},{"$f":"IF(AND(YEAR(MayOffset+31)=calendarYear,MONTH(MayOffset+31)=5),MayOffset+31,\"\")","v":"2018-05-29"},{"$f":"IF(AND(YEAR(MayOffset+32)=calendarYear,MONTH(MayOffset+32)=5),MayOffset+32,\"\")","v":"2018-05-30"},{"$f":"IF(AND(YEAR(MayOffset+33)=calendarYear,MONTH(MayOffset+33)=5),MayOffset+33,\"\")","v":"2018-05-31"},{"$f":"IF(AND(YEAR(MayOffset+34)=calendarYear,MONTH(MayOffset+34)=5),MayOffset+34,\"\")","v":""},{"$f":"IF(AND(YEAR(MayOffset+35)=calendarYear,MONTH(MayOffset+35)=5),MayOffset+35,\"\")","v":""}]
[]
[null,{"$f":"IF(AND(YEAR(MayOffset+36)=calendarYear,MONTH(MayOffset+36)=5),MayOffset+36,\"\")","v":""},{"$f":"IF(AND(YEAR(MayOffset+37)=calendarYear,MONTH(MayOffset+37)=5),MayOffset+37,\"\")","v":""},"Notes:"]

{"sheet":"Jun","index":5,"n_rows":14,"n_cols":8,"rows_kept":14,"cut":false,"hidden":false,"merged":[[1,1,1,7],[13,3,14,7]]}
[]
[null,{"$f":"CONCATENATE(\"June \" & calendarYear)","v":"June 2018"}]
[null,"SUNDAY","MONDAY","TUESDAY","WEDNESDAY","THURSDAY","FRIDAY","SATURDAY"]
[null,{"$f":"IF(AND(YEAR(JunOffset+1)=calendarYear,MONTH(JunOffset+1)=6),JunOffset+1,\"\")","v":""},{"$f":"IF(AND(YEAR(JunOffset+2)=calendarYear,MONTH(JunOffset+2)=6),JunOffset+2,\"\")","v":""},{"$f":"IF(AND(YEAR(JunOffset+3)=calendarYear,MONTH(JunOffset+3)=6),JunOffset+3,\"\")","v":""},{"$f":"IF(AND(YEAR(JunOffset+4)=calendarYear,MONTH(JunOffset+4)=6),JunOffset+4,\"\")","v":""},{"$f":"IF(AND(YEAR(JunOffset+5)=calendarYear,MONTH(JunOffset+5)=6),JunOffset+5,\"\")","v":""},{"$f":"IF(AND(YEAR(JunOffset+6)=calendarYear,MONTH(JunOffset+6)=6),JunOffset+6,\"\")","v":"2018-06-01"},{"$f":"IF(AND(YEAR(JunOffset+7)=calendarYear,MONTH(JunOffset+7)=6),JunOffset+7,\"\")","v":"2018-06-02"}]
[]
[null,{"$f":"IF(AND(YEAR(JunOffset+8)=calendarYear,MONTH(JunOffset+8)=6),JunOffset+8,\"\")","v":"2018-06-03"},{"$f":"IF(AND(YEAR(JunOffset+9)=calendarYear,MONTH(JunOffset+9)=6),JunOffset+9,\"\")","v":"2018-06-04"},{"$f":"IF(AND(YEAR(JunOffset+10)=calendarYear,MONTH(JunOffset+10)=6),JunOffset+10,\"\")","v":"2018-06-05"},{"$f":"IF(AND(YEAR(JunOffset+11)=calendarYear,MONTH(JunOffset+11)=6),JunOffset+11,\"\")","v":"2018-06-06"},{"$f":"IF(AND(YEAR(JunOffset+12)=calendarYear,MONTH(JunOffset+12)=6),JunOffset+12,\"\")","v":"2018-06-07"},{"$f":"IF(AND(YEAR(JunOffset+13)=calendarYear,MONTH(JunOffset+13)=6),JunOffset+13,\"\")","v":"2018-06-08"},{"$f":"IF(AND(YEAR(JunOffset+14)=calendarYear,MONTH(JunOffset+14)=6),JunOffset+14,\"\")","v":"2018-06-09"}]
[]
[null,{"$f":"IF(AND(YEAR(JunOffset+15)=calendarYear,MONTH(JunOffset+15)=6),JunOffset+15,\"\")","v":"2018-06-10"},{"$f":"IF(AND(YEAR(JunOffset+16)=calendarYear,MONTH(JunOffset+16)=6),JunOffset+16,\"\")","v":"2018-06-11"},{"$f":"IF(AND(YEAR(JunOffset+17)=calendarYear,MONTH(JunOffset+17)=6),JunOffset+17,\"\")","v":"2018-06-12"},{"$f":"IF(AND(YEAR(JunOffset+18)=calendarYear,MONTH(JunOffset+18)=6),JunOffset+18,\"\")","v":"2018-06-13"},{"$f":"IF(AND(YEAR(JunOffset+19)=calendarYear,MONTH(JunOffset+19)=6),JunOffset+19,\"\")","v":"2018-06-14"},{"$f":"IF(AND(YEAR(JunOffset+20)=calendarYear,MONTH(JunOffset+20)=6),JunOffset+20,\"\")","v":"2018-06-15"},{"$f":"IF(AND(YEAR(JunOffset+21)=calendarYear,MONTH(JunOffset+21)=6),JunOffset+21,\"\")","v":"2018-06-16"}]
[]
[null,{"$f":"IF(AND(YEAR(JunOffset+22)=calendarYear,MONTH(JunOffset+22)=6),JunOffset+22,\"\")","v":"2018-06-17"},{"$f":"IF(AND(YEAR(JunOffset+23)=calendarYear,MONTH(JunOffset+23)=6),JunOffset+23,\"\")","v":"2018-06-18"},{"$f":"IF(AND(YEAR(JunOffset+24)=calendarYear,MONTH(JunOffset+24)=6),JunOffset+24,\"\")","v":"2018-06-19"},{"$f":"IF(AND(YEAR(JunOffset+25)=calendarYear,MONTH(JunOffset+25)=6),JunOffset+25,\"\")","v":"2018-06-20"},{"$f":"IF(AND(YEAR(JunOffset+26)=calendarYear,MONTH(JunOffset+26)=6),JunOffset+26,\"\")","v":"2018-06-21"},{"$f":"IF(AND(YEAR(JunOffset+27)=calendarYear,MONTH(JunOffset+27)=6),JunOffset+27,\"\")","v":"2018-06-22"},{"$f":"IF(AND(YEAR(JunOffset+28)=calendarYear,MONTH(JunOffset+28)=6),JunOffset+28,\"\")","v":"2018-06-23"}]
[]
[null,{"$f":"IF(AND(YEAR(JunOffset+29)=calendarYear,MONTH(JunOffset+29)=6),JunOffset+29,\"\")","v":"2018-06-24"},{"$f":"IF(AND(YEAR(JunOffset+30)=calendarYear,MONTH(JunOffset+30)=6),JunOffset+30,\"\")","v":"2018-06-25"},{"$f":"IF(AND(YEAR(JunOffset+31)=calendarYear,MONTH(JunOffset+31)=6),JunOffset+31,\"\")","v":"2018-06-26"},{"$f":"IF(AND(YEAR(JunOffset+32)=calendarYear,MONTH(JunOffset+32)=6),JunOffset+32,\"\")","v":"2018-06-27"},{"$f":"IF(AND(YEAR(JunOffset+33)=calendarYear,MONTH(JunOffset+33)=6),JunOffset+33,\"\")","v":"2018-06-28"},{"$f":"IF(AND(YEAR(JunOffset+34)=calendarYear,MONTH(JunOffset+34)=6),JunOffset+34,\"\")","v":"2018-06-29"},{"$f":"IF(AND(YEAR(JunOffset+35)=calendarYear,MONTH(JunOffset+35)=6),JunOffset+35,\"\")","v":"2018-06-30"}]
[]
[null,{"$f":"IF(AND(YEAR(JunOffset+36)=calendarYear,MONTH(JunOffset+36)=6),JunOffset+36,\"\")","v":""},{"$f":"IF(AND(YEAR(JunOffset+37)=calendarYear,MONTH(JunOffset+37)=6),JunOffset+37,\"\")","v":""},"Notes:"]

{"sheet":"Jul","index":6,"n_rows":14,"n_cols":8,"rows_kept":14,"cut":false,"hidden":false,"merged":[[1,1,1,7],[13,3,14,7]]}
[]
[null,{"$f":"CONCATENATE(\"July \" & calendarYear)","v":"July 2018"}]
[null,"SUNDAY","MONDAY","TUESDAY","WEDNESDAY","THURSDAY","FRIDAY","SATURDAY"]
[null,{"$f":"IF(AND(YEAR(JulOffset+1)=calendarYear,MONTH(JulOffset+1)=7),JulOffset+1,\"\")","v":"2018-07-01"},{"$f":"IF(AND(YEAR(JulOffset+2)=calendarYear,MONTH(JulOffset+2)=7),JulOffset+2,\"\")","v":"2018-07-02"},{"$f":"IF(AND(YEAR(JulOffset+3)=calendarYear,MONTH(JulOffset+3)=7),JulOffset+3,\"\")","v":"2018-07-03"},{"$f":"IF(AND(YEAR(JulOffset+4)=calendarYear,MONTH(JulOffset+4)=7),JulOffset+4,\"\")","v":"2018-07-04"},{"$f":"IF(AND(YEAR(JulOffset+5)=calendarYear,MONTH(JulOffset+5)=7),JulOffset+5,\"\")","v":"2018-07-05"},{"$f":"IF(AND(YEAR(JulOffset+6)=calendarYear,MONTH(JulOffset+6)=7),JulOffset+6,\"\")","v":"2018-07-06"},{"$f":"IF(AND(YEAR(JulOffset+7)=calendarYear,MONTH(JulOffset+7)=7),JulOffset+7,\"\")","v":"2018-07-07"}]
[]
[null,{"$f":"IF(AND(YEAR(JulOffset+8)=calendarYear,MONTH(JulOffset+8)=7),JulOffset+8,\"\")","v":"2018-07-08"},{"$f":"IF(AND(YEAR(JulOffset+9)=calendarYear,MONTH(JulOffset+9)=7),JulOffset+9,\"\")","v":"2018-07-09"},{"$f":"IF(AND(YEAR(JulOffset+10)=calendarYear,MONTH(JulOffset+10)=7),JulOffset+10,\"\")","v":"2018-07-10"},{"$f":"IF(AND(YEAR(JulOffset+11)=calendarYear,MONTH(JulOffset+11)=7),JulOffset+11,\"\")","v":"2018-07-11"},{"$f":"IF(AND(YEAR(JulOffset+12)=calendarYear,MONTH(JulOffset+12)=7),JulOffset+12,\"\")","v":"2018-07-12"},{"$f":"IF(AND(YEAR(JulOffset+13)=calendarYear,MONTH(JulOffset+13)=7),JulOffset+13,\"\")","v":"2018-07-13"},{"$f":"IF(AND(YEAR(JulOffset+14)=calendarYear,MONTH(JulOffset+14)=7),JulOffset+14,\"\")","v":"2018-07-14"}]
[]
[null,{"$f":"IF(AND(YEAR(JulOffset+15)=calendarYear,MONTH(JulOffset+15)=7),JulOffset+15,\"\")","v":"2018-07-15"},{"$f":"IF(AND(YEAR(JulOffset+16)=calendarYear,MONTH(JulOffset+16)=7),JulOffset+16,\"\")","v":"2018-07-16"},{"$f":"IF(AND(YEAR(JulOffset+17)=calendarYear,MONTH(JulOffset+17)=7),JulOffset+17,\"\")","v":"2018-07-17"},{"$f":"IF(AND(YEAR(JulOffset+18)=calendarYear,MONTH(JulOffset+18)=7),JulOffset+18,\"\")","v":"2018-07-18"},{"$f":"IF(AND(YEAR(JulOffset+19)=calendarYear,MONTH(JulOffset+19)=7),JulOffset+19,\"\")","v":"2018-07-19"},{"$f":"IF(AND(YEAR(JulOffset+20)=calendarYear,MONTH(JulOffset+20)=7),JulOffset+20,\"\")","v":"2018-07-20"},{"$f":"IF(AND(YEAR(JulOffset+21)=calendarYear,MONTH(JulOffset+21)=7),JulOffset+21,\"\")","v":"2018-07-21"}]
[]
[null,{"$f":"IF(AND(YEAR(JulOffset+22)=calendarYear,MONTH(JulOffset+22)=7),JulOffset+22,\"\")","v":"2018-07-22"},{"$f":"IF(AND(YEAR(JulOffset+23)=calendarYear,MONTH(JulOffset+23)=7),JulOffset+23,\"\")","v":"2018-07-23"},{"$f":"IF(AND(YEAR(JulOffset+24)=calendarYear,MONTH(JulOffset+24)=7),JulOffset+24,\"\")","v":"2018-07-24"},{"$f":"IF(AND(YEAR(JulOffset+25)=calendarYear,MONTH(JulOffset+25)=7),JulOffset+25,\"\")","v":"2018-07-25"},{"$f":"IF(AND(YEAR(JulOffset+26)=calendarYear,MONTH(JulOffset+26)=7),JulOffset+26,\"\")","v":"2018-07-26"},{"$f":"IF(AND(YEAR(JulOffset+27)=calendarYear,MONTH(JulOffset+27)=7),JulOffset+27,\"\")","v":"2018-07-27"},{"$f":"IF(AND(YEAR(JulOffset+28)=calendarYear,MONTH(JulOffset+28)=7),JulOffset+28,\"\")","v":"2018-07-28"}]
[]
[null,{"$f":"IF(AND(YEAR(JulOffset+29)=calendarYear,MONTH(JulOffset+29)=7),JulOffset+29,\"\")","v":"2018-07-29"},{"$f":"IF(AND(YEAR(JulOffset+30)=calendarYear,MONTH(JulOffset+30)=7),JulOffset+30,\"\")","v":"2018-07-30"},{"$f":"IF(AND(YEAR(JulOffset+31)=calendarYear,MONTH(JulOffset+31)=7),JulOffset+31,\"\")","v":"2018-07-31"},{"$f":"IF(AND(YEAR(JulOffset+32)=calendarYear,MONTH(JulOffset+32)=7),JulOffset+32,\"\")","v":""},{"$f":"IF(AND(YEAR(JulOffset+33)=calendarYear,MONTH(JulOffset+33)=7),JulOffset+33,\"\")","v":""},{"$f":"IF(AND(YEAR(JulOffset+34)=calendarYear,MONTH(JulOffset+34)=7),JulOffset+34,\"\")","v":""},{"$f":"IF(AND(YEAR(JulOffset+35)=calendarYear,MONTH(JulOffset+35)=7),JulOffset+35,\"\")","v":""}]
[]
[null,{"$f":"IF(AND(YEAR(JulOffset+36)=calendarYear,MONTH(JulOffset+36)=7),JulOffset+36,\"\")","v":""},{"$f":"IF(AND(YEAR(JulOffset+37)=calendarYear,MONTH(JulOffset+37)=7),JulOffset+37,\"\")","v":""},"Notes:"]

{"sheet":"Aug","index":7,"n_rows":14,"n_cols":8,"rows_kept":14,"cut":false,"hidden":false,"merged":[[1,1,1,7],[13,3,14,7]]}
[]
[null,{"$f":"CONCATENATE(\"August \" & calendarYear)","v":"August 2018"}]
[null,"SUNDAY","MONDAY","TUESDAY","WEDNESDAY","THURSDAY","FRIDAY","SATURDAY"]
[null,{"$f":"IF(AND(YEAR(AugOffset+1)=calendarYear,MONTH(AugOffset+1)=8),AugOffset+1,\"\")","v":""},{"$f":"IF(AND(YEAR(AugOffset+2)=calendarYear,MONTH(AugOffset+2)=8),AugOffset+2,\"\")","v":""},{"$f":"IF(AND(YEAR(AugOffset+3)=calendarYear,MONTH(AugOffset+3)=8),AugOffset+3,\"\")","v":""},{"$f":"IF(AND(YEAR(AugOffset+4)=calendarYear,MONTH(AugOffset+4)=8),AugOffset+4,\"\")","v":"2018-08-01"},{"$f":"IF(AND(YEAR(AugOffset+5)=calendarYear,MONTH(AugOffset+5)=8),AugOffset+5,\"\")","v":"2018-08-02"},{"$f":"IF(AND(YEAR(AugOffset+6)=calendarYear,MONTH(AugOffset+6)=8),AugOffset+6,\"\")","v":"2018-08-03"},{"$f":"IF(AND(YEAR(AugOffset+7)=calendarYear,MONTH(AugOffset+7)=8),AugOffset+7,\"\")","v":"2018-08-04"}]
[]
[null,{"$f":"IF(AND(YEAR(AugOffset+8)=calendarYear,MONTH(AugOffset+8)=8),AugOffset+8,\"\")","v":"2018-08-05"},{"$f":"IF(AND(YEAR(AugOffset+9)=calendarYear,MONTH(AugOffset+9)=8),AugOffset+9,\"\")","v":"2018-08-06"},{"$f":"IF(AND(YEAR(AugOffset+10)=calendarYear,MONTH(AugOffset+10)=8),AugOffset+10,\"\")","v":"2018-08-07"},{"$f":"IF(AND(YEAR(AugOffset+11)=calendarYear,MONTH(AugOffset+11)=8),AugOffset+11,\"\")","v":"2018-08-08"},{"$f":"IF(AND(YEAR(AugOffset+12)=calendarYear,MONTH(AugOffset+12)=8),AugOffset+12,\"\")","v":"2018-08-09"},{"$f":"IF(AND(YEAR(AugOffset+13)=calendarYear,MONTH(AugOffset+13)=8),AugOffset+13,\"\")","v":"2018-08-10"},{"$f":"IF(AND(YEAR(AugOffset+14)=calendarYear,MONTH(AugOffset+14)=8),AugOffset+14,\"\")","v":"2018-08-11"}]
[]
[null,{"$f":"IF(AND(YEAR(AugOffset+15)=calendarYear,MONTH(AugOffset+15)=8),AugOffset+15,\"\")","v":"2018-08-12"},{"$f":"IF(AND(YEAR(AugOffset+16)=calendarYear,MONTH(AugOffset+16)=8),AugOffset+16,\"\")","v":"2018-08-13"},{"$f":"IF(AND(YEAR(AugOffset+17)=calendarYear,MONTH(AugOffset+17)=8),AugOffset+17,\"\")","v":"2018-08-14"},{"$f":"IF(AND(YEAR(AugOffset+18)=calendarYear,MONTH(AugOffset+18)=8),AugOffset+18,\"\")","v":"2018-08-15"},{"$f":"IF(AND(YEAR(AugOffset+19)=calendarYear,MONTH(AugOffset+19)=8),AugOffset+19,\"\")","v":"2018-08-16"},{"$f":"IF(AND(YEAR(AugOffset+20)=calendarYear,MONTH(AugOffset+20)=8),AugOffset+20,\"\")","v":"2018-08-17"},{"$f":"IF(AND(YEAR(AugOffset+21)=calendarYear,MONTH(AugOffset+21)=8),AugOffset+21,\"\")","v":"2018-08-18"}]
[]
[null,{"$f":"IF(AND(YEAR(AugOffset+22)=calendarYear,MONTH(AugOffset+22)=8),AugOffset+22,\"\")","v":"2018-08-19"},{"$f":"IF(AND(YEAR(AugOffset+23)=calendarYear,MONTH(AugOffset+23)=8),AugOffset+23,\"\")","v":"2018-08-20"},{"$f":"IF(AND(YEAR(AugOffset+24)=calendarYear,MONTH(AugOffset+24)=8),AugOffset+24,\"\")","v":"2018-08-21"},{"$f":"IF(AND(YEAR(AugOffset+25)=calendarYear,MONTH(AugOffset+25)=8),AugOffset+25,\"\")","v":"2018-08-22"},{"$f":"IF(AND(YEAR(AugOffset+26)=calendarYear,MONTH(AugOffset+26)=8),AugOffset+26,\"\")","v":"2018-08-23"},{"$f":"IF(AND(YEAR(AugOffset+27)=calendarYear,MONTH(AugOffset+27)=8),AugOffset+27,\"\")","v":"2018-08-24"},{"$f":"IF(AND(YEAR(AugOffset+28)=calendarYear,MONTH(AugOffset+28)=8),AugOffset+28,\"\")","v":"2018-08-25"}]
[]
[null,{"$f":"IF(AND(YEAR(AugOffset+29)=calendarYear,MONTH(AugOffset+29)=8),AugOffset+29,\"\")","v":"2018-08-26"},{"$f":"IF(AND(YEAR(AugOffset+30)=calendarYear,MONTH(AugOffset+30)=8),AugOffset+30,\"\")","v":"2018-08-27"},{"$f":"IF(AND(YEAR(AugOffset+31)=calendarYear,MONTH(AugOffset+31)=8),AugOffset+31,\"\")","v":"2018-08-28"},{"$f":"IF(AND(YEAR(AugOffset+32)=calendarYear,MONTH(AugOffset+32)=8),AugOffset+32,\"\")","v":"2018-08-29"},{"$f":"IF(AND(YEAR(AugOffset+33)=calendarYear,MONTH(AugOffset+33)=8),AugOffset+33,\"\")","v":"2018-08-30"},{"$f":"IF(AND(YEAR(AugOffset+34)=calendarYear,MONTH(AugOffset+34)=8),AugOffset+34,\"\")","v":"2018-08-31"},{"$f":"IF(AND(YEAR(AugOffset+35)=calendarYear,MONTH(AugOffset+35)=8),AugOffset+35,\"\")","v":""}]
[]
[null,{"$f":"IF(AND(YEAR(AugOffset+36)=calendarYear,MONTH(AugOffset+36)=8),AugOffset+36,\"\")","v":""},{"$f":"IF(AND(YEAR(AugOffset+37)=calendarYear,MONTH(AugOffset+37)=8),AugOffset+37,\"\")","v":""},"Notes:"]

{"sheet":"Sep","index":8,"n_rows":14,"n_cols":8,"rows_kept":14,"cut":false,"hidden":false,"merged":[[1,1,1,7],[13,3,14,7]]}
[]
[null,{"$f":"CONCATENATE(\"September \" & calendarYear)","v":"September 2018"}]
[null,"SUNDAY","MONDAY","TUESDAY","WEDNESDAY","THURSDAY","FRIDAY","SATURDAY"]
[null,{"$f":"IF(AND(YEAR(SepOffset+1)=calendarYear,MONTH(SepOffset+1)=9),SepOffset+1,\"\")","v":""},{"$f":"IF(AND(YEAR(SepOffset+2)=calendarYear,MONTH(SepOffset+2)=9),SepOffset+2,\"\")","v":""},{"$f":"IF(AND(YEAR(SepOffset+3)=calendarYear,MONTH(SepOffset+3)=9),SepOffset+3,\"\")","v":""},{"$f":"IF(AND(YEAR(SepOffset+4)=calendarYear,MONTH(SepOffset+4)=9),SepOffset+4,\"\")","v":""},{"$f":"IF(AND(YEAR(SepOffset+5)=calendarYear,MONTH(SepOffset+5)=9),SepOffset+5,\"\")","v":""},{"$f":"IF(AND(YEAR(SepOffset+6)=calendarYear,MONTH(SepOffset+6)=9),SepOffset+6,\"\")","v":""},{"$f":"IF(AND(YEAR(SepOffset+7)=calendarYear,MONTH(SepOffset+7)=9),SepOffset+7,\"\")","v":"2018-09-01"}]
[]
[null,{"$f":"IF(AND(YEAR(SepOffset+8)=calendarYear,MONTH(SepOffset+8)=9),SepOffset+8,\"\")","v":"2018-09-02"},{"$f":"IF(AND(YEAR(SepOffset+9)=calendarYear,MONTH(SepOffset+9)=9),SepOffset+9,\"\")","v":"2018-09-03"},{"$f":"IF(AND(YEAR(SepOffset+10)=calendarYear,MONTH(SepOffset+10)=9),SepOffset+10,\"\")","v":"2018-09-04"},{"$f":"IF(AND(YEAR(SepOffset+11)=calendarYear,MONTH(SepOffset+11)=9),SepOffset+11,\"\")","v":"2018-09-05"},{"$f":"IF(AND(YEAR(SepOffset+12)=calendarYear,MONTH(SepOffset+12)=9),SepOffset+12,\"\")","v":"2018-09-06"},{"$f":"IF(AND(YEAR(SepOffset+13)=calendarYear,MONTH(SepOffset+13)=9),SepOffset+13,\"\")","v":"2018-09-07"},{"$f":"IF(AND(YEAR(SepOffset+14)=calendarYear,MONTH(SepOffset+14)=9),SepOffset+14,\"\")","v":"2018-09-08"}]
[]
[null,{"$f":"IF(AND(YEAR(SepOffset+15)=calendarYear,MONTH(SepOffset+15)=9),SepOffset+15,\"\")","v":"2018-09-09"},{"$f":"IF(AND(YEAR(SepOffset+16)=calendarYear,MONTH(SepOffset+16)=9),SepOffset+16,\"\")","v":"2018-09-10"},{"$f":"IF(AND(YEAR(SepOffset+17)=calendarYear,MONTH(SepOffset+17)=9),SepOffset+17,\"\")","v":"2018-09-11"},{"$f":"IF(AND(YEAR(SepOffset+18)=calendarYear,MONTH(SepOffset+18)=9),SepOffset+18,\"\")","v":"2018-09-12"},{"$f":"IF(AND(YEAR(SepOffset+19)=calendarYear,MONTH(SepOffset+19)=9),SepOffset+19,\"\")","v":"2018-09-13"},{"$f":"IF(AND(YEAR(SepOffset+20)=calendarYear,MONTH(SepOffset+20)=9),SepOffset+20,\"\")","v":"2018-09-14"},{"$f":"IF(AND(YEAR(SepOffset+21)=calendarYear,MONTH(SepOffset+21)=9),SepOffset+21,\"\")","v":"2018-09-15"}]
[]
[null,{"$f":"IF(AND(YEAR(SepOffset+22)=calendarYear,MONTH(SepOffset+22)=9),SepOffset+22,\"\")","v":"2018-09-16"},{"$f":"IF(AND(YEAR(SepOffset+23)=calendarYear,MONTH(SepOffset+23)=9),SepOffset+23,\"\")","v":"2018-09-17"},{"$f":"IF(AND(YEAR(SepOffset+24)=calendarYear,MONTH(SepOffset+24)=9),SepOffset+24,\"\")","v":"2018-09-18"},{"$f":"IF(AND(YEAR(SepOffset+25)=calendarYear,MONTH(SepOffset+25)=9),SepOffset+25,\"\")","v":"2018-09-19"},{"$f":"IF(AND(YEAR(SepOffset+26)=calendarYear,MONTH(SepOffset+26)=9),SepOffset+26,\"\")","v":"2018-09-20"},{"$f":"IF(AND(YEAR(SepOffset+27)=calendarYear,MONTH(SepOffset+27)=9),SepOffset+27,\"\")","v":"2018-09-21"},{"$f":"IF(AND(YEAR(SepOffset+28)=calendarYear,MONTH(SepOffset+28)=9),SepOffset+28,\"\")","v":"2018-09-22"}]
[]
[null,{"$f":"IF(AND(YEAR(SepOffset+29)=calendarYear,MONTH(SepOffset+29)=9),SepOffset+29,\"\")","v":"2018-09-23"},{"$f":"IF(AND(YEAR(SepOffset+30)=calendarYear,MONTH(SepOffset+30)=9),SepOffset+30,\"\")","v":"2018-09-24"},{"$f":"IF(AND(YEAR(SepOffset+31)=calendarYear,MONTH(SepOffset+31)=9),SepOffset+31,\"\")","v":"2018-09-25"},{"$f":"IF(AND(YEAR(SepOffset+32)=calendarYear,MONTH(SepOffset+32)=9),SepOffset+32,\"\")","v":"2018-09-26"},{"$f":"IF(AND(YEAR(SepOffset+33)=calendarYear,MONTH(SepOffset+33)=9),SepOffset+33,\"\")","v":"2018-09-27"},{"$f":"IF(AND(YEAR(SepOffset+34)=calendarYear,MONTH(SepOffset+34)=9),SepOffset+34,\"\")","v":"2018-09-28"},{"$f":"IF(AND(YEAR(SepOffset+35)=calendarYear,MONTH(SepOffset+35)=9),SepOffset+35,\"\")","v":"2018-09-29"}]
[]
[null,{"$f":"IF(AND(YEAR(SepOffset+36)=calendarYear,MONTH(SepOffset+36)=9),SepOffset+36,\"\")","v":"2018-09-30"},{"$f":"IF(AND(YEAR(SepOffset+37)=calendarYear,MONTH(SepOffset+37)=9),SepOffset+37,\"\")","v":""},"Notes:"]

{"sheet":"Oct","index":9,"n_rows":14,"n_cols":8,"rows_kept":14,"cut":false,"hidden":false,"merged":[[1,1,1,7],[13,3,14,7]]}
[]
[null,{"$f":"CONCATENATE(\"October \" & calendarYear)","v":"October 2018"}]
[null,"SUNDAY","MONDAY","TUESDAY","WEDNESDAY","THURSDAY","FRIDAY","SATURDAY"]
[null,{"$f":"IF(AND(YEAR(OctOffset+1)=calendarYear,MONTH(OctOffset+1)=10),OctOffset+1,\"\")","v":""},{"$f":"IF(AND(YEAR(OctOffset+2)=calendarYear,MONTH(OctOffset+2)=10),OctOffset+2,\"\")","v":"2018-10-01"},{"$f":"IF(AND(YEAR(OctOffset+3)=calendarYear,MONTH(OctOffset+3)=10),OctOffset+3,\"\")","v":"2018-10-02"},{"$f":"IF(AND(YEAR(OctOffset+4)=calendarYear,MONTH(OctOffset+4)=10),OctOffset+4,\"\")","v":"2018-10-03"},{"$f":"IF(AND(YEAR(OctOffset+5)=calendarYear,MONTH(OctOffset+5)=10),OctOffset+5,\"\")","v":"2018-10-04"},{"$f":"IF(AND(YEAR(OctOffset+6)=calendarYear,MONTH(OctOffset+6)=10),OctOffset+6,\"\")","v":"2018-10-05"},{"$f":"IF(AND(YEAR(OctOffset+7)=calendarYear,MONTH(OctOffset+7)=10),OctOffset+7,\"\")","v":"2018-10-06"}]
[]
[null,{"$f":"IF(AND(YEAR(OctOffset+8)=calendarYear,MONTH(OctOffset+8)=10),OctOffset+8,\"\")","v":"2018-10-07"},{"$f":"IF(AND(YEAR(OctOffset+9)=calendarYear,MONTH(OctOffset+9)=10),OctOffset+9,\"\")","v":"2018-10-08"},{"$f":"IF(AND(YEAR(OctOffset+10)=calendarYear,MONTH(OctOffset+10)=10),OctOffset+10,\"\")","v":"2018-10-09"},{"$f":"IF(AND(YEAR(OctOffset+11)=calendarYear,MONTH(OctOffset+11)=10),OctOffset+11,\"\")","v":"2018-10-10"},{"$f":"IF(AND(YEAR(OctOffset+12)=calendarYear,MONTH(OctOffset+12)=10),OctOffset+12,\"\")","v":"2018-10-11"},{"$f":"IF(AND(YEAR(OctOffset+13)=calendarYear,MONTH(OctOffset+13)=10),OctOffset+13,\"\")","v":"2018-10-12"},{"$f":"IF(AND(YEAR(OctOffset+14)=calendarYear,MONTH(OctOffset+14)=10),OctOffset+14,\"\")","v":"2018-10-13"}]
[]
[null,{"$f":"IF(AND(YEAR(OctOffset+15)=calendarYear,MONTH(OctOffset+15)=10),OctOffset+15,\"\")","v":"2018-10-14"},{"$f":"IF(AND(YEAR(OctOffset+16)=calendarYear,MONTH(OctOffset+16)=10),OctOffset+16,\"\")","v":"2018-10-15"},{"$f":"IF(AND(YEAR(OctOffset+17)=calendarYear,MONTH(OctOffset+17)=10),OctOffset+17,\"\")","v":"2018-10-16"},{"$f":"IF(AND(YEAR(OctOffset+18)=calendarYear,MONTH(OctOffset+18)=10),OctOffset+18,\"\")","v":"2018-10-17"},{"$f":"IF(AND(YEAR(OctOffset+19)=calendarYear,MONTH(OctOffset+19)=10),OctOffset+19,\"\")","v":"2018-10-18"},{"$f":"IF(AND(YEAR(OctOffset+20)=calendarYear,MONTH(OctOffset+20)=10),OctOffset+20,\"\")","v":"2018-10-19"},{"$f":"IF(AND(YEAR(OctOffset+21)=calendarYear,MONTH(OctOffset+21)=10),OctOffset+21,\"\")","v":"2018-10-20"}]
[]
[null,{"$f":"IF(AND(YEAR(OctOffset+22)=calendarYear,MONTH(OctOffset+22)=10),OctOffset+22,\"\")","v":"2018-10-21"},{"$f":"IF(AND(YEAR(OctOffset+23)=calendarYear,MONTH(OctOffset+23)=10),OctOffset+23,\"\")","v":"2018-10-22"},{"$f":"IF(AND(YEAR(OctOffset+24)=calendarYear,MONTH(OctOffset+24)=10),OctOffset+24,\"\")","v":"2018-10-23"},{"$f":"IF(AND(YEAR(OctOffset+25)=calendarYear,MONTH(OctOffset+25)=10),OctOffset+25,\"\")","v":"2018-10-24"},{"$f":"IF(AND(YEAR(OctOffset+26)=calendarYear,MONTH(OctOffset+26)=10),OctOffset+26,\"\")","v":"2018-10-25"},{"$f":"IF(AND(YEAR(OctOffset+27)=calendarYear,MONTH(OctOffset+27)=10),OctOffset+27,\"\")","v":"2018-10-26"},{"$f":"IF(AND(YEAR(OctOffset+28)=calendarYear,MONTH(OctOffset+28)=10),OctOffset+28,\"\")","v":"2018-10-27"}]
[]
[null,{"$f":"IF(AND(YEAR(OctOffset+29)=calendarYear,MONTH(OctOffset+29)=10),OctOffset+29,\"\")","v":"2018-10-28"},{"$f":"IF(AND(YEAR(OctOffset+30)=calendarYear,MONTH(OctOffset+30)=10),OctOffset+30,\"\")","v":"2018-10-29"},{"$f":"IF(AND(YEAR(OctOffset+31)=calendarYear,MONTH(OctOffset+31)=10),OctOffset+31,\"\")","v":"2018-10-30"},{"$f":"IF(AND(YEAR(OctOffset+32)=calendarYear,MONTH(OctOffset+32)=10),OctOffset+32,\"\")","v":"2018-10-31"},{"$f":"IF(AND(YEAR(OctOffset+33)=calendarYear,MONTH(OctOffset+33)=10),OctOffset+33,\"\")","v":""},{"$f":"IF(AND(YEAR(OctOffset+34)=calendarYear,MONTH(OctOffset+34)=10),OctOffset+34,\"\")","v":""},{"$f":"IF(AND(YEAR(OctOffset+35)=calendarYear,MONTH(OctOffset+35)=10),OctOffset+35,\"\")","v":""}]
[]
[null,{"$f":"IF(AND(YEAR(OctOffset+36)=calendarYear,MONTH(OctOffset+36)=10),OctOffset+36,\"\")","v":""},{"$f":"IF(AND(YEAR(OctOffset+37)=calendarYear,MONTH(OctOffset+37)=10),OctOffset+37,\"\")","v":""},"Notes:"]

{"sheet":"Nov","index":10,"n_rows":14,"n_cols":8,"rows_kept":14,"cut":false,"hidden":false,"merged":[[1,1,1,7],[13,3,14,7]]}
[]
[null,{"$f":"CONCATENATE(\"November \" & calendarYear)","v":"November 2018"}]
[null,"SUNDAY","MONDAY","TUESDAY","WEDNESDAY","THURSDAY","FRIDAY","SATURDAY"]
[null,{"$f":"IF(AND(YEAR(NovOffset+1)=calendarYear,MONTH(NovOffset+1)=11),NovOffset+1,\"\")","v":""},{"$f":"IF(AND(YEAR(NovOffset+2)=calendarYear,MONTH(NovOffset+2)=11),NovOffset+2,\"\")","v":""},{"$f":"IF(AND(YEAR(NovOffset+3)=calendarYear,MONTH(NovOffset+3)=11),NovOffset+3,\"\")","v":""},{"$f":"IF(AND(YEAR(NovOffset+4)=calendarYear,MONTH(NovOffset+4)=11),NovOffset+4,\"\")","v":""},{"$f":"IF(AND(YEAR(NovOffset+5)=calendarYear,MONTH(NovOffset+5)=11),NovOffset+5,\"\")","v":"2018-11-01"},{"$f":"IF(AND(YEAR(NovOffset+6)=calendarYear,MONTH(NovOffset+6)=11),NovOffset+6,\"\")","v":"2018-11-02"},{"$f":"IF(AND(YEAR(NovOffset+7)=calendarYear,MONTH(NovOffset+7)=11),NovOffset+7,\"\")","v":"2018-11-03"}]
[]
[null,{"$f":"IF(AND(YEAR(NovOffset+8)=calendarYear,MONTH(NovOffset+8)=11),NovOffset+8,\"\")","v":"2018-11-04"},{"$f":"IF(AND(YEAR(NovOffset+9)=calendarYear,MONTH(NovOffset+9)=11),NovOffset+9,\"\")","v":"2018-11-05"},{"$f":"IF(AND(YEAR(NovOffset+10)=calendarYear,MONTH(NovOffset+10)=11),NovOffset+10,\"\")","v":"2018-11-06"},{"$f":"IF(AND(YEAR(NovOffset+11)=calendarYear,MONTH(NovOffset+11)=11),NovOffset+11,\"\")","v":"2018-11-07"},{"$f":"IF(AND(YEAR(NovOffset+12)=calendarYear,MONTH(NovOffset+12)=11),NovOffset+12,\"\")","v":"2018-11-08"},{"$f":"IF(AND(YEAR(NovOffset+13)=calendarYear,MONTH(NovOffset+13)=11),NovOffset+13,\"\")","v":"2018-11-09"},{"$f":"IF(AND(YEAR(NovOffset+14)=calendarYear,MONTH(NovOffset+14)=11),NovOffset+14,\"\")","v":"2018-11-10"}]
[]
[null,{"$f":"IF(AND(YEAR(NovOffset+15)=calendarYear,MONTH(NovOffset+15)=11),NovOffset+15,\"\")","v":"2018-11-11"},{"$f":"IF(AND(YEAR(NovOffset+16)=calendarYear,MONTH(NovOffset+16)=11),NovOffset+16,\"\")","v":"2018-11-12"},{"$f":"IF(AND(YEAR(NovOffset+17)=calendarYear,MONTH(NovOffset+17)=11),NovOffset+17,\"\")","v":"2018-11-13"},{"$f":"IF(AND(YEAR(NovOffset+18)=calendarYear,MONTH(NovOffset+18)=11),NovOffset+18,\"\")","v":"2018-11-14"},{"$f":"IF(AND(YEAR(NovOffset+19)=calendarYear,MONTH(NovOffset+19)=11),NovOffset+19,\"\")","v":"2018-11-15"},{"$f":"IF(AND(YEAR(NovOffset+20)=calendarYear,MONTH(NovOffset+20)=11),NovOffset+20,\"\")","v":"2018-11-16"},{"$f":"IF(AND(YEAR(NovOffset+21)=calendarYear,MONTH(NovOffset+21)=11),NovOffset+21,\"\")","v":"2018-11-17"}]
[]
[null,{"$f":"IF(AND(YEAR(NovOffset+22)=calendarYear,MONTH(NovOffset+22)=11),NovOffset+22,\"\")","v":"2018-11-18"},{"$f":"IF(AND(YEAR(NovOffset+23)=calendarYear,MONTH(NovOffset+23)=11),NovOffset+23,\"\")","v":"2018-11-19"},{"$f":"IF(AND(YEAR(NovOffset+24)=calendarYear,MONTH(NovOffset+24)=11),NovOffset+24,\"\")","v":"2018-11-20"},{"$f":"IF(AND(YEAR(NovOffset+25)=calendarYear,MONTH(NovOffset+25)=11),NovOffset+25,\"\")","v":"2018-11-21"},{"$f":"IF(AND(YEAR(NovOffset+26)=calendarYear,MONTH(NovOffset+26)=11),NovOffset+26,\"\")","v":"2018-11-22"},{"$f":"IF(AND(YEAR(NovOffset+27)=calendarYear,MONTH(NovOffset+27)=11),NovOffset+27,\"\")","v":"2018-11-23"},{"$f":"IF(AND(YEAR(NovOffset+28)=calendarYear,MONTH(NovOffset+28)=11),NovOffset+28,\"\")","v":"2018-11-24"}]
[]
[null,{"$f":"IF(AND(YEAR(NovOffset+29)=calendarYear,MONTH(NovOffset+29)=11),NovOffset+29,\"\")","v":"2018-11-25"},{"$f":"IF(AND(YEAR(NovOffset+30)=calendarYear,MONTH(NovOffset+30)=11),NovOffset+30,\"\")","v":"2018-11-26"},{"$f":"IF(AND(YEAR(NovOffset+31)=calendarYear,MONTH(NovOffset+31)=11),NovOffset+31,\"\")","v":"2018-11-27"},{"$f":"IF(AND(YEAR(NovOffset+32)=calendarYear,MONTH(NovOffset+32)=11),NovOffset+32,\"\")","v":"2018-11-28"},{"$f":"IF(AND(YEAR(NovOffset+33)=calendarYear,MONTH(NovOffset+33)=11),NovOffset+33,\"\")","v":"2018-11-29"},{"$f":"IF(AND(YEAR(NovOffset+34)=calendarYear,MONTH(NovOffset+34)=11),NovOffset+34,\"\")","v":"2018-11-30"},{"$f":"IF(AND(YEAR(NovOffset+35)=calendarYear,MONTH(NovOffset+35)=11),NovOffset+35,\"\")","v":""}]
[]
[null,{"$f":"IF(AND(YEAR(NovOffset+36)=calendarYear,MONTH(NovOffset+36)=11),NovOffset+36,\"\")","v":""},{"$f":"IF(AND(YEAR(NovOffset+37)=calendarYear,MONTH(NovOffset+37)=11),NovOffset+37,\"\")","v":""},"Notes:"]

{"sheet":"Dec","index":11,"n_rows":14,"n_cols":8,"rows_kept":14,"cut":false,"hidden":false,"merged":[[1,1,1,7],[13,3,14,7]]}
[]
[null,{"$f":"CONCATENATE(\"December \" & calendarYear)","v":"December 2018"}]
[null,"SUNDAY","MONDAY","TUESDAY","WEDNESDAY","THURSDAY","FRIDAY","SATURDAY"]
[null,{"$f":"IF(AND(YEAR(DecOffset+1)=calendarYear,MONTH(DecOffset+1)=12),DecOffset+1,\"\")","v":""},{"$f":"IF(AND(YEAR(DecOffset+2)=calendarYear,MONTH(DecOffset+2)=12),DecOffset+2,\"\")","v":""},{"$f":"IF(AND(YEAR(DecOffset+3)=calendarYear,MONTH(DecOffset+3)=12),DecOffset+3,\"\")","v":""},{"$f":"IF(AND(YEAR(DecOffset+4)=calendarYear,MONTH(DecOffset+4)=12),DecOffset+4,\"\")","v":""},{"$f":"IF(AND(YEAR(DecOffset+5)=calendarYear,MONTH(DecOffset+5)=12),DecOffset+5,\"\")","v":""},{"$f":"IF(AND(YEAR(DecOffset+6)=calendarYear,MONTH(DecOffset+6)=12),DecOffset+6,\"\")","v":""},{"$f":"IF(AND(YEAR(DecOffset+7)=calendarYear,MONTH(DecOffset+7)=12),DecOffset+7,\"\")","v":"2018-12-01"}]
[]
[null,{"$f":"IF(AND(YEAR(DecOffset+8)=calendarYear,MONTH(DecOffset+8)=12),DecOffset+8,\"\")","v":"2018-12-02"},{"$f":"IF(AND(YEAR(DecOffset+9)=calendarYear,MONTH(DecOffset+9)=12),DecOffset+9,\"\")","v":"2018-12-03"},{"$f":"IF(AND(YEAR(DecOffset+10)=calendarYear,MONTH(DecOffset+10)=12),DecOffset+10,\"\")","v":"2018-12-04"},{"$f":"IF(AND(YEAR(DecOffset+11)=calendarYear,MONTH(DecOffset+11)=12),DecOffset+11,\"\")","v":"2018-12-05"},{"$f":"IF(AND(YEAR(DecOffset+12)=calendarYear,MONTH(DecOffset+12)=12),DecOffset+12,\"\")","v":"2018-12-06"},{"$f":"IF(AND(YEAR(DecOffset+13)=calendarYear,MONTH(DecOffset+13)=12),DecOffset+13,\"\")","v":"2018-12-07"},{"$f":"IF(AND(YEAR(DecOffset+14)=calendarYear,MONTH(DecOffset+14)=12),DecOffset+14,\"\")","v":"2018-12-08"}]
[]
[null,{"$f":"IF(AND(YEAR(DecOffset+15)=calendarYear,MONTH(DecOffset+15)=12),DecOffset+15,\"\")","v":"2018-12-09"},{"$f":"IF(AND(YEAR(DecOffset+16)=calendarYear,MONTH(DecOffset+16)=12),DecOffset+16,\"\")","v":"2018-12-10"},{"$f":"IF(AND(YEAR(DecOffset+17)=calendarYear,MONTH(DecOffset+17)=12),DecOffset+17,\"\")","v":"2018-12-11"},{"$f":"IF(AND(YEAR(DecOffset+18)=calendarYear,MONTH(DecOffset+18)=12),DecOffset+18,\"\")","v":"2018-12-12"},{"$f":"IF(AND(YEAR(DecOffset+19)=calendarYear,MONTH(DecOffset+19)=12),DecOffset+19,\"\")","v":"2018-12-13"},{"$f":"IF(AND(YEAR(DecOffset+20)=calendarYear,MONTH(DecOffset+20)=12),DecOffset+20,\"\")","v":"2018-12-14"},{"$f":"IF(AND(YEAR(DecOffset+21)=calendarYear,MONTH(DecOffset+21)=12),DecOffset+21,\"\")","v":"2018-12-15"}]
[]
[null,{"$f":"IF(AND(YEAR(DecOffset+22)=calendarYear,MONTH(DecOffset+22)=12),DecOffset+22,\"\")","v":"2018-12-16"},{"$f":"IF(AND(YEAR(DecOffset+23)=calendarYear,MONTH(DecOffset+23)=12),DecOffset+23,\"\")","v":"2018-12-17"},{"$f":"IF(AND(YEAR(DecOffset+24)=calendarYear,MONTH(DecOffset+24)=12),DecOffset+24,\"\")","v":"2018-12-18"},{"$f":"IF(AND(YEAR(DecOffset+25)=calendarYear,MONTH(DecOffset+25)=12),DecOffset+25,\"\")","v":"2018-12-19"},{"$f":"IF(AND(YEAR(DecOffset+26)=calendarYear,MONTH(DecOffset+26)=12),DecOffset+26,\"\")","v":"2018-12-20"},{"$f":"IF(AND(YEAR(DecOffset+27)=calendarYear,MONTH(DecOffset+27)=12),DecOffset+27,\"\")","v":"2018-12-21"},{"$f":"IF(AND(YEAR(DecOffset+28)=calendarYear,MONTH(DecOffset+28)=12),DecOffset+28,\"\")","v":"2018-12-22"}]
[]
[null,{"$f":"IF(AND(YEAR(DecOffset+29)=calendarYear,MONTH(DecOffset+29)=12),DecOffset+29,\"\")","v":"2018-12-23"},{"$f":"IF(AND(YEAR(DecOffset+30)=calendarYear,MONTH(DecOffset+30)=12),DecOffset+30,\"\")","v":"2018-12-24"},{"$f":"IF(AND(YEAR(DecOffset+31)=calendarYear,MONTH(DecOffset+31)=12),DecOffset+31,\"\")","v":"2018-12-25"},{"$f":"IF(AND(YEAR(DecOffset+32)=calendarYear,MONTH(DecOffset+32)=12),DecOffset+32,\"\")","v":"2018-12-26"},{"$f":"IF(AND(YEAR(DecOffset+33)=calendarYear,MONTH(DecOffset+33)=12),DecOffset+33,\"\")","v":"2018-12-27"},{"$f":"IF(AND(YEAR(DecOffset+34)=calendarYear,MONTH(DecOffset+34)=12),DecOffset+34,\"\")","v":"2018-12-28"},{"$f":"IF(AND(YEAR(DecOffset+35)=calendarYear,MONTH(DecOffset+35)=12),DecOffset+35,\"\")","v":"2018-12-29"}]
[]
[null,{"$f":"IF(AND(YEAR(DecOffset+36)=calendarYear,MONTH(DecOffset+36)=12),DecOffset+36,\"\")","v":"2018-12-30"},{"$f":"IF(AND(YEAR(DecOffset+37)=calendarYear,MONTH(DecOffset+37)=12),DecOffset+37,\"\")","v":"2018-12-31"},"Notes:"]